Cogmind - Beta 10 X2 @@@ ROGUE MODE // 2020.07.01 @ 18:23:13 Player: Nikolayag Result: Self-destructed Performance ------------- Evolutions (1) 500 Regions Visited (5) 1000 Robots Destroyed (74) 370 Value Destroyed (1154) 1154 Prototype IDs (26) 520 Alien Tech Used (0) 0 Bonus (431) 431 TOTAL SCORE: 3975 Bonus ------- High Alert Combat Kills 131 Aligned with FarCom 300 Cogmind --------- Core Integrity 272/400 Matter 186/300 Energy 265/265 System Corruption 9% Temperature Cool (0) Movement Rolling (130) Ox3 Location -9/Exiles Parts ------- > --- POWER (1) -------- Improved Ion Engine > --- PROPULSION (2) --- Light Treads Compact Wheel > --- UTILITY (4) ------ Large Storage Unit Large Storage Unit Medium Armor Plating Thief Drone Bay (0/3) > --- WEAPON (2) ------- Plasma Cutter > --- INVENTORY (16) --- Ion Engine Light Nuclear Core Light Treads Light Treads Light Treads Armored Wheel Improved Flight Unit Improved Flight Unit Improved Flight Unit Large Storage Unit Medium Armor Plating Assault Rifle Light Assault Rifle Improved Assault Rifle Shock Bomb Launcher Rocket Launcher Peak State ------------ > --- POWER ------------ Improved Ion Engine > --- PROPULSION ------- Light Treads Compact Wheel > --- UTILITY ---------- Large Storage Unit Large Storage Unit Large Storage Unit Thief Drone Bay > --- WEAPON ----------- Rocket Launcher Plasma Cutter > --- INVENTORY -------- Ion Engine Light Nuclear Core Light Treads Light Treads Light Treads Light Treads Armored Wheel Improved Flight Unit Improved Flight Unit Improved Flight Unit Large Storage Unit Improved Signal Interpreter Medium Armor Plating Medium Armor Plating Assault Rifle Light Assault Rifle Heavy Assault Rifle Shotgun Improved Assault Rifle Shock Bomb Launcher [Rating: 21] Favorites ----------- Power Light Ion Engine Engine Light Ion Engine Propulsion Compact Wheel Treads Light Treads Wheel Compact Wheel Flight Unit Improved Flight Unit Utility Large Storage Unit Device Thief Drone Bay Storage Large Storage Unit Protection Medium Armor Plating Weapon Shotgun Energy Gun EM Shotgun Ballistic Gun Shotgun Launcher Rocket Launcher Special Weapon Plasma Cutter Build | -11 -10 -10 -9 -9 -9 ------- Run | Scr Mat Min Mat Min Exi Slots Evolved 2 | . . . 2 . . Power . | . . . . . . Propulsion . | . . . . . . Utility 2 | . . . 2 . . Weapon . | . . . . . . Parts Attached 54 | 7 14 2 27 . 4 Power 4 | 1 1 . 2 . . Engine 4 | 1 1 . 2 . . Core . | . . . . . . Reactor . | . . . . . . Propulsion 13 | 2 1 . 10 . . Treads 7 | . 1 . 6 . . Leg . | . . . . . . Wheel 5 | 2 . . 3 . . Hover . | . . . . . . Flight 1 | . . . 1 . . Utility 14 | 1 4 2 5 . 2 Device 2 | . . 1 . . 1 Storage 7 | 1 3 1 2 . . Processor . | . . . . . . Hackware . | . . . . . . Protection 5 | . 1 . 3 . 1 Artifact . | . . . . . . Weapon 23 | 3 8 . 10 . 2 Energy Gun 7 | 2 2 . 3 . . Energy Cannon . | . . . . . . Ballistic Gun 11 | 1 5 . 5 . . Ballistic Cannon . | . . . . . . Launcher 4 | . 1 . 2 . 1 Special Weapon 1 | . . . . . 1 Impact Weapon . | . . . . . . Slashing Weapon . | . . . . . . Piercing Weapon . | . . . . . . Special Melee Weapon . | . . . . . . Unidentified Prototypes 3 | . . 1 2 . . Parts Lost 10 | . 2 . 8 . . Power 2 | . 1 . 1 . . Propulsion 4 | . 1 . 3 . . Utility 2 | . . . 2 . . Weapon 2 | . . . 2 . . Highest Loss Streak 4 | . 2 . 4 . . Average Slot Usage (%) 96 | . 96 100 98 100 86 Engine 11 | . 13 14 11 11 11 Treads 10 | . 1 14 14 11 11 Wheel 12 | . 26 14 5 11 11 Storage 32 | . 22 28 34 44 33 Protection 5 | . 2 . 9 . 4 Energy Gun 5 | . 12 . 2 11 1 Ballistic Gun 14 | . 14 28 18 11 1 Naked Turns . | . . . . . . Heaviest Build 77 | 11 43 43 77 77 77 Greatest Support 40 | 32 32 16 40 16 16 Greatest Overweight (x) 4 | . 2 2 4 4 4 Average Overweight (x) 2 | . . 2 3 4 3 Largest Inventory Capacity 28 | 6 16 16 28 28 28 Average Capacity 20 | 5 12 15 22 28 22 Most Carried 28 | 4 14 16 25 28 28 Average Carried 17 | 2 9 15 18 27 21 Final Capacity 28 | 6 16 16 28 28 16 Final Carried 28 | 4 14 16 25 28 16 Class Distribution -------------------- 63% | Hauler-Mutant 36% | Mutant Dominant Class ---------------- Mutant | -10/Materials Mutant | -10/Mines Hauler-Mutant | -9/Materials Hauler-Mutant | -9/Mines Hauler-Mutant | -9/Exiles Resources | -11 -10 -10 -9 -9 -9 ----------- Run | Scr Mat Min Mat Min Exi Matter Collected 1628 | 218 366 24 891 129 . Remotely . | . . . . . . Salvage Created 2231 | 120 714 18 1041 318 20 Parts 122 | 3 35 1 65 18 . Haulers Intercepted 3 | . 2 . 1 . . Recyclers Shooed 3 | . 1 . 1 1 . Parts Field Recycled . | . . . . . . Retrieved Matter . | . . . . . . Parts Self-Destructed . | . . . . . . Prevented . | . . . . . . Kills | -11 -10 -10 -9 -9 -9 ------- Run | Scr Mat Min Mat Min Exi Combat Hostiles Destroyed 49 | . 11 . 28 3 7 Guns 40 | . 11 . 26 3 . AOE 9 | . . . 2 . 7 Classes Destroyed 11 | 2 6 . 2 . 1 Worker 7 | . 2 1 3 1 . Builder 4 | . 2 . 1 1 . Tunneler 2 | 2 . . . . . Hauler 3 | . 2 . 1 . . Recycler 8 | 1 2 . 3 2 . Watcher 1 | . 1 . . . . Swarmer 20 | . 6 . 14 . . Grunt 17 | . 5 . 9 3 . Brawler 1 | . . . 1 . . Sentry 4 | . . . 4 . . Assembled 7 | . . . . . 7 Best Kill Streak 8 | 3 8 1 6 3 7 Combat Bots Only 7 | . 5 . 6 2 7 Max Kills in Single Turn 7 | 2 2 1 3 1 7 Gunslinging 1 | . . . 1 . . Exploded 7 | . . . 2 . 7 Melee . | . . . . . . Uniques/NPCs Destroyed . | . . . . . . Combat | -11 -10 -10 -9 -9 -9 -------- Run | Scr Mat Min Mat Min Exi Damage Taken 1741 | . 341 . 1317 63 20 Core 160 | . 32 . 128 . . Absorbed by Shields . | . . . . . . Core Remaining (%) 93 | 100 . 87 . . . Volleys Fired 160 | 7 41 1 94 14 3 Largest 2 | 2 2 2 2 2 1 Hottest 80 | 80 80 46 68 68 20 Shots Fired 309 | 14 82 2 183 25 3 Gun 301 | 14 82 2 178 25 . Cannon . | . . . . . . Launcher 5 | . . . 5 . . Special 3 | . . . . . 3 Kinetic 238 | . 50 2 171 15 . Thermal 3 | . . . . . 3 Explosive 1 | . . . 1 . . Electromagnetic 67 | 14 32 . 11 10 . Robot Hit Streak 12 | 5 10 4 12 7 1 Robot Miss Streak 5 | 1 5 . 4 2 3 Penetration Max . | . . . . . . Secondary Targets 4 | . . . 4 . . Max Gunslinging Chain 1 | . . . 1 . . Shots Hit Robots 217 | 10 54 2 134 16 1 Core Hits 115 | 4 30 2 56 13 10 Critical Hits 1 | . . . 1 . . Critical Kills 1 | . . . 1 . . Critical Parts Destroyed . | . . . . . . Melee Attacks . | . . . . . . Impact . | . . . . . . Slashing . | . . . . . . Piercing . | . . . . . . Sneak Attacks . | . . . . . . Combat Hostiles . | . . . . . . Follow-up Attacks . | . . . . . . Damage Inflicted 3383 | 173 770 32 1742 269 397 Guns 2661 | 128 770 32 1497 234 . Cannons . | . . . . . . Explosions 711 | 45 . . 245 35 386 Melee . | . . . . . . Ramming . | . . . . . . Kinetic 2027 | . 466 32 1434 95 . Thermal 129 | 45 . . 38 35 11 Explosive 573 | . . . 187 . 386 Electromagnetic 654 | 128 304 . 83 139 . Impact . | . . . . . . Slashing . | . . . . . . Piercing . | . . . . . . Highest Corruption 9 | . . . 9 9 9 Average Corruption 7 | . . . 6 9 9 Corruption Purged . | . . . . . . Effects 50 | . . . 19 16 15 Message Errors 13 | . . . 5 6 2 Matter Fused 13 | . . . 4 2 7 Heat Flow Errors 5 | . . . 4 . 1 Energy Discharges 3 | . . . . 1 2 Data Loss (minor) 5 | . . . 2 . 3 Data Loss (major) 2 | . . . . 2 . Misfires 3 | . . . 2 1 . Targeting Errors 6 | . . . 2 4 . Overload Shots . | . . . . . . Overflow Damage 21 | . . . 21 . . Projectiles . | . . . . . . Explosions 21 | . . . 21 . . Melee . | . . . . . . Knockbacks . | . . . . . . Impact . | . . . . . . Kinetic . | . . . . . . Secondary . | . . . . . . Self-Inflicted Damage . | . . . . . . Shots . | . . . . . . Rammed . | . . . . . . Targets Rammed . | . . . . . . Kicked . | . . . . . . Crushed . | . . . . . . Highest Temperature 273 | 72 168 . 235 18 273 Average Temperature 55 | 33 66 . 46 12 140 Received Heat Transfer 522 | . 129 . 360 33 . Siege Activations . | . . . . . . Robots Corrupted . | . . . . . . Combat Hostiles . | . . . . . . Parts Fried 1 | 1 . . . . . Impact Corruptions . | . . . . . . Robots Melted . | . . . . . . Combat Hostiles . | . . . . . . Parts Melted . | . . . . . . Heat Transferred 137 | 50 . . 50 . 37 Parts Sabotaged . | . . . . . . Parts Stolen . | . . . . . . Parts Stripped . | . . . . . . Power Chain Reactions 3 | 1 . . 1 1 . Missiles Intercepted . | . . . . . . Alert | -11 -10 -10 -9 -9 -9 ------- Run | Scr Mat Min Mat Min Exi Peak Influence 935 | 15 935 350 467 271 . Average Influence 391 | 4 742 348 298 253 . Maximum Alert Level 3 | . 3 1 2 1 . Low Security (%) 17 | 100 10 . 21 7 . Level 1 56 | . 2 100 68 92 . Level 2 5 | . 3 . 10 . . Level 3 19 | . 83 . . . . Level 4 . | . . . . . . Level 5 . | . . . . . . High Security . | . . . . . . Max Security . | . . . . . . Squads Dispatched 4 | . 2 . 2 . . Investigation 1 | . 1 . . . . Extermination . | . . . . . . Reinforcement 3 | . 1 . 2 . . Assault . | . . . . . . Garrison . | . . . . . . Intercept . | . . . . . . Construction Impeded 1 | . . . 1 . . Haulers Reinforced . | . . . . . . Stealth | -11 -10 -10 -9 -9 -9 --------- Run | Scr Mat Min Mat Min Exi Distress Signals 6 | . 1 . 5 . . Communications Jammed . | . . . . . . Distress Signals . | . . . . . . Times Spotted 67 | . 18 . 45 3 1 Peak Tracking Total 8 | . 6 . 8 3 4 Tactical Retreats 4 | . . . 4 . . Traps | -11 -10 -10 -9 -9 -9 ------- Run | Scr Mat Min Mat Min Exi Traps Triggered 2 | . . . 2 . . Indirectly 2 | . . . 2 . . Trap Hack Attempts . | . . . . . . Triggered . | . . . . . . Disarmed . | . . . . . . Reprogrammed . | . . . . . . Reused 2 | . . . . . 2 Traps Extracted . | . . . . . . Installed 3 | . . . . . 3 Triggered . | . . . . . . Machines | -11 -10 -10 -9 -9 -9 ---------- Run | Scr Mat Min Mat Min Exi Machines Disabled 4 | . . . . 1 3 Max in Single Turn 3 | . . . . 1 3 Machines Sabotaged . | . . . . . . Garrisons Compromised . | . . . . . . Overloaded Fab Kills . | . . . . . . Fab Network Shutdowns . | . . . . . . Hacking | -11 -10 -10 -9 -9 -9 --------- Run | Scr Mat Min Mat Min Exi Machines Accessed 7 | . 3 1 2 . 1 Terminals 5 | . 3 . 2 . . Fabricators . | . . . . . . Repair Stations . | . . . . . . Recycling Units . | . . . . . . Scanalyzers . | . . . . . . Garrison Access . | . . . . . . Total Hacks 11 | . 6 1 3 . 1 Successful 5 | . 1 1 2 . 1 Failed 5 | . 4 . 1 . . Catastrophic 4 | . 3 . 1 . . Database Lockouts 1 | . 1 . . . . Manual 8 | . 6 . 1 . 1 Terminals 9 | . 6 . 3 . . Fabricators . | . . . . . . Repair Stations . | . . . . . . Recycling Units . | . . . . . . Scanalyzers . | . . . . . . Garrison Access . | . . . . . . Terminal Hacks 5 | . 1 1 2 . 1 Part Schematic 1 | . 1 . . . . Open Door 1 | . . 1 . . . Terminal Index 1 | . . . 1 . . Unreport Threat 1 | . . . 1 . . EX-Prototype ID Bank 1 | . . . . . 1 Fabricator Hacks . | . . . . . . Repair Station Hacks . | . . . . . . Recycling Unit Hacks . | . . . . . . Scanalyzer . | . . . . . . Garrison Access Hacks . | . . . . . . Unauthorized Hacks . | . . . . . . Terminals . | . . . . . . Fabricators . | . . . . . . Repair Stations . | . . . . . . Recycling Units . | . . . . . . Scanalyzers . | . . . . . . Garrison Access . | . . . . . . Data Cores Recovered . | . . . . . . Used . | . . . . . . Hacking Detections 5 | . 3 . 2 . . Full Trace Events 1 | . 1 . . . . Feedback Events . | . . . . . . Feedback Blocked . | . . . . . . Robot Schematics Acquired . | . . . . . . Robots Built . | . . . . . . Matter . | . . . . . . Time . | . . . . . . Total Robot Build Rating . | . . . . . . Part Schematics Acquired 1 | . 1 . . . . Parts Built . | . . . . . . Matter . | . . . . . . Time . | . . . . . . Total Part Build Rating . | . . . . . . Parts Repaired . | . . . . . . Time . | . . . . . . Parts Recycled . | . . . . . . Recycled Matter . | . . . . . . Retrieved Matter . | . . . . . . Retrieved Components . | . . . . . . Parts Scanalyzed . | . . . . . . Part Schematics Acquired . | . . . . . . Parts Damaged . | . . . . . . Bothacking | -11 -10 -10 -9 -9 -9 ------------ Run | Scr Mat Min Mat Min Exi Used RIF Installer . | . . . . . . Robots Hacked . | . . . . . . Non-combat . | . . . . . . Combat . | . . . . . . Robot Hacks Applied . | . . . . . . Relay Couplers Released . | . . . . . . Robots Rewired . | . . . . . . Allies Hacked . | . . . . . . Hacks Repelled . | . . . . . . Allies | -11 -10 -10 -9 -9 -9 -------- Run | Scr Mat Min Mat Min Exi Total Allies . | . . . . . . Largest Group . | . . . . . . Highest-Rated Group . | . . . . . . Highest-Rated Ally . | . . . . . . Total Orders 1 | . . . . . 1 EXPLORE 1 | . . . . . 1 Ally Attacks 52 | . . . . . 52 Total Damage 262 | . . . . . 262 Kills . | . . . . . . Allies Corrupted . | . . . . . . Allies Melted . | . . . . . . Intel | -11 -10 -10 -9 -9 -9 ------- Run | Scr Mat Min Mat Min Exi Robot Analysis Total . | . . . . . . Derelict Logs Recovered 1 | . . 1 . . . Drone Launches 14 | . . . . . 14 Drone Recoveries 11 | . . . . . 11 Exploration | -11 -10 -10 -9 -9 -9 ------------- Run | Scr Mat Min Mat Min Exi Turns Passed 2906 | 87 585 216 1190 375 453 Spaces Moved 1580 | 53 387 163 498 227 252 Core 5 | 5 . . . . . Treads 134 | . . . 134 . . Legs . | . . . . . . Wheels 1441 | 48 387 163 364 227 252 Hover . | . . . . . . Flight . | . . . . . . Fastest Speed 50 | 50 100 120 130 140 130 Average Speed 131 | 95 107 120 151 140 135 Slowest Speed 220 | 100 120 120 220 140 140 Overloaded Moves . | . . . . . . Propulsion Burnouts . | . . . . . . Robots Hopped . | . . . . . . Cave-ins Triggered . | . . . . . . Exploration Rate (%) 41 | 3 56 50 53 44 42 Regions Visited 5 Branch Regions 3 Pre-discovered Areas . | . . . . . . Known Exits Taken 1 | . . . 1 . . Unknown Exits Taken 4 | 1 1 1 . 1 . Scrap Searched 2 | . . 2 . . . Spaces Dug . | . . . . . . Terrain Destroyed 40 | 8 . . 11 2 19 Melee . | . . . . . . Projectile . | . . . . . . AOE 40 | 8 . . 11 2 19 Actions | -11 -10 -10 -9 -9 -9 --------- Run | Scr Mat Min Mat Min Exi Total 2106 | 72 477 183 754 261 359 Wait 221 | 1 10 5 100 16 89 Move 1575 | 52 386 162 497 226 252 Hop . | . . . . . . Pick Up 54 | 5 14 9 22 4 . Fast Attach 17 | 5 6 1 4 . 1 Attach 21 | 1 3 1 13 . 3 Detach 11 | . 4 1 5 . 1 Swap 16 | 1 5 . 10 . . Drop 28 | . 8 3 9 1 7 Fire 160 | 7 41 1 94 14 3 Melee . | . . . . . . Ram . | . . . . . . Kick . | . . . . . . Crush . | . . . . . . Escape Stasis . | . . . . . . Rewire . | . . . . . . Trap 3 | . . . . . 3 Miscellaneous . | . . . . . . Route ------- -11/Scrapyard -10/Materials (discovered 3 exits: *Mat / *Min x2) -10/Mines -9/Materials (discovered 2 exits: *Min x2) -9/Mines -9/Exiles History --------- Turn | Location | Event 2 | -11/Scrapyard | Met Revision 17 6 | -11/Scrapyard | Discovered new exit (range 16) 88 | -11/Scrapyard | Entered Materials 108 | -10/Materials | Discovered new exit (range 13) 302 | -10/Materials | Discovered new exit (range 16) 329 | -10/Materials | Build established: Mutant 648 | -10/Materials | Central database locked down 650 | -10/Materials | Discovered new exit (range 16) 673 | -10/Materials | Entered Mines 678 | -10/Mines | Found the Drone Emporium 683 | -10/Mines | Found Prototype Device 756 | -10/Mines | Learned 2 Materials zone layouts 785 | -10/Mines | Found a hidden stash of uninstalled traps 790 | -10/Mines | Identified Thief Drone Bay 877 | -10/Mines | Discovered new exit (range 12) 889 | -10/Mines | Entered Materials 889 | -9/Materials | Evolved 2 slots: Utility x2 890 | -9/Materials | Identified exit to Mines 1172 | -9/Materials | Build established: Hauler-Mutant 1365 | -9/Materials | Lost 4 parts (1p1u2w) 2019 | -9/Materials | Discovered exit to Mines (range 12) 2079 | -9/Materials | Entered Mines 2449 | -9/Mines | Deemed a non-threat by the Exiles lab entrance 2449 | -9/Mines | Discovered new exit (range 5) 2454 | -9/Mines | Entered Exiles 2492 | -9/Exiles | Met 8R-AWN 2511 | -9/Exiles | Met EX-HEX 2571 | -9/Exiles | Met EX-BIN 2590 | -9/Exiles | Aligned with FarCom system 2592 | -9/Exiles | Given EX-Vault access code 2624 | -9/Exiles | Opened EX-Vault 2660 | -9/Exiles | Warned to stay clear of 0b10 Research branches 2688 | -9/Exiles | Attacked by the Exiles 2709 | -9/Exiles | Destroyed 7 combat bots 2907 | -9/Exiles | Self-destructed Last Messages --------------- 02857_ Thief Drone delivers Prototype Device. 02857_ Thief Drone retrieved by Thief Drone Bay. 02859_ Thief Drone released from Thief Drone Bay. 02859_ 8R-AWN Prototype Device ripped off. 02860_ Thief Drone released from Thief Drone Bay. 02861_ Thief Drone delivers Prototype Device. 02861_ Thief Drone retrieved by Thief Drone Bay. 02863_ 8R-AWN Prototype Device ripped off. 02865_ Thief Drone delivers Prototype Device. 02865_ Thief Drone retrieved by Thief Drone Bay. 02866_ Thief Drone delivers Prototype Device. 02866_ Thief Drone retrieved by Thief Drone Bay. 02872_ System corrupted: Matter fused (-9). 02881_ Thief Drone released from Thief Drone Bay. 02883_ 8R-AWN Adv. Weapon Cycler ripped off. 02883_ 8R-AWN Prototype Processor ripped off. 02892_ Thief Drone delivers Adv. Weapon Cycler. 02892_ Thief Drone retrieved by Thief Drone Bay. 02895_ Thief Drone released from Thief Drone Bay. 02905_ Destroyed Prototype Protection. Map ----- +----------------------------------------------------+ | ????????????????????# X""#??????????????? | | ????????????????????# ## """#??????????????? | | ??????????????####??# #??"""""???????????????? | | ??????????????"""""?# #???#?##???????????????? | | ?????????????"""" ## #??????????????????????? | | ????????????#""X" #??????????????????????? | | ????????????#" #??????????????????????? | | ????????????#" ## #??????????????????????? | | ????????????#""""""?# #?#########????????????? | | ????????????##"###??# #?#"""""""#????????????? | | ????????????????????# #?#"""""""#????????????? | | ????????????????????# #?#"""""""#????????????? | | ???????????????????## ###"" """"#????????????? | | ???????????????????#" """"#????????????? | | ???????????????????#" """#????????????? | | ???????????????????#" [ """#????????????? | | ???????????????????#" ]!=!= """#????????????? | | ???????????????????#" [[[! """#????????????? | | ???????????????????#" == """#????????????? | | ???????????????????## """"????????????? | | ????????????????????# """#????????????? | | ????????????????????#" "X" """"????????????? | | ????????????????????#" n! """ #????????????? | | ????????????????????#"gn*! """""""""#????????????? | | ???????????????????##" n! ###########????????????? | | ??????????????????##"" @#??????????????????????? | | ????????????????###"" #??????????????????????? | | ????????????????""""" ##?????????????????????? | | ??????????????"" " "" ##???#########????????? | | ??????????????"" " #####"""""""""##?????? | | ????????????? " " """ """"##????? | | ??????????? "" " #????? | | ?????????? " """#????? | | ??????????? " "#????? | | ??????????? " "##???? | | ??????????? ""###?? | | ??????????? """""" """#?? | | ???????????? ######""" "#?? | | ???????????? ""#?????#####""" ##? | | ??????????????????????????##""" ## | | ???????????????????????????#"""" # | | ??????????????????????????##"" | | ???????????????????????####"""" | | ???????????????????????#""" | | ?????????????????????"""" | | ??????????????????? | | ????????????????? # | | ????????????????? # | | ?????????????????? " "" % "## | | ???????????????????"## ##""" " " ""# % #? | +----------------------------------------------------+ Best States ------------- Heat Dissipation 28 Energy Generation 12 Energy Capacity 265 Matter Stores 300 Matter Capacity 300 Sight Range 16 Terrain Scan Density 10 Armor Coverage 225 Evasion (%) 40 Recoil Reduction 2 Item Schematics ----------------- Hcp. Storage Unit | -10/Materials | Hacked Robot Schematics ------------------ None Fabricated ------------ Nothing Alien Tech Used ----------------- None Achievements -------------- None Challenges ------------ None Game ------ Seed BattleRemoteBay Manual? 0 Play Time 00:30:49 Cumulative 273.0 hours Start 2020.07.01 @ 14:14:10 End 2020.07.01 @ 18:23:13 Sessions 4 Manual Loads 0 Difficulty Rogue Special Mode None Game No. 201 Rogue 201 Adventurer 0 Explorer 0 Win Type - Total 6 Types 5/0/0/0/0/0/1 Lore% 78 Gallery% 89 Achievement% 71 Wizard Run 0 Options --------- ASCII 0 Keyboard 1 Movement Numpad Keybinds 0 Fullscreen 2 Font 18/SmallcapsGlow Map View 76x50 Tactical HUD 1 Map Filters NONE Filters NONE Steam X RUN: 1ff024ef-d0c4-4f44-b5af-a59f1a5bad7b